bitfinex-derivatives/quotes_SOLF0:USTF0_20250101
["timestamp","ask_amount","ask_price","bid_price","bid_amount"]
[1735732643806,8.38027011,191.42,191.36,4.9643779]
[1735732644011,8.38027011,191.42,191.37,8.38027011]
[1735732644509,8.38027011,191.42,191.41,2.6172]
[1735732645201,11.34027011,191.44,191.41,2.6172]
[1735732646210,2.96,191.44,191.41,2.6172]
[1735732646411,8.38027011,191.43,191.41,2.6172]
[1735732646612,2.96,191.44,191.41,2.6172]
[1735732646812,8.38027011,191.43,191.41,2.6172]
[1735732647911,8.38027011,191.43,191.37,8.38027011]
[1735732648107,8.38027011,191.43,191.4,2.6174]
[1735732648711,8.38027011,191.41,191.37,2.6177]
[1735732648911,8.38027011,191.39,191.37,2.6177]
[1735732652211,2.6173,191.41,191.37,2.6177]
[1735732652413,8.38027011,191.39,191.37,2.6177]
[1735732654613,11.34027011,191.39,191.32,8.38027011]
[1735732654808,11.34027011,191.39,191.35,2.618]
[1735732656613,11.34027011,191.39,191.32,8.38027011]
[1735732656813,11.34027011,191.39,191.36,2.6178]
[1735732658318,8.38027011,191.37,191.31,1.612]
[1735732658616,8.38027011,191.35,191.28,8.38027011]
[1735732659207,8.38027011,191.35,191.29,4.96126077]
[1735732659412,8.38027011,191.35,191.28,8.38027011]
[1735732660218,8.38027011,191.35,191.34,2.6181]
[1735732661219,8.38027011,191.35,191.28,8.38027011]
[1735732662423,8.38027011,191.35,191.34,2.6182]
[1735732662816,8.38027011,191.35,191.27,49.85607109]
[1735732663017,8.38027011,191.33,191.27,58.2363412]
[1735732663619,8.38027011,191.33,191.32,2.6184]
[1735732667424,2.96,191.34,191.33,2.6183]
[1735732667623,11.34027011,191.34,191.33,2.6183]
[1735732668434,4.5909,191.38,191.36,2.6179]
[1735732668728,11.34027011,191.37,191.36,2.6179]
[1735732676735,3.1011,191.38,191.36,2.6179]
[1735732676936,2.96,191.37,191.31,8.38027011]
[1735732678531,2.96,191.37,191.36,2.6179]
[1735732681637,2.96,191.4,191.39,2.6175]
[1735732681840,8.38027011,191.42,191.39,2.6175]
[1735732682138,2.96,191.41,191.39,2.6175]
[1735732682540,8.38027011,191.42,191.39,2.6175]
[1735732682731,2.96,191.41,191.39,2.6175]
[1735732682935,2.617,191.43,191.39,2.6175]
[1735732683234,11.34027011,191.42,191.4,2.6174]
[1735732683431,11.34027011,191.42,191.35,8.38027011]
[1735732684443,11.34027011,191.42,191.37,2.6178]
[1735732684637,11.34027011,191.42,191.35,8.38027011]
[1735732685440,8.38027011,191.4,191.38,2.6175]
[1735732689041,2.96,191.42,191.38,2.6175]
[1735732689241,8.38027011,191.4,191.38,2.6175]
[1735732691936,8.38027011,191.4,191.35,2.618]
[1735732692137,8.38027011,191.38,191.35,2.618]
[1735732693841,2.96,191.37,191.33,2.6183]
[1735732695642,2.96,191.37,191.31,9.95267011]
[1735732695942,2.96,191.37,191.34,2.6182]
[1735732696444,2.96,191.37,191.31,9.95267011]
[1735732696642,2.96,191.37,191.33,8.38027011]
[1735732696943,11.34027011,191.4,191.33,8.38027011]
[1735732697150,11.34027011,191.4,191.34,8.38027011]
[1735732698150,11.34027011,191.4,191.35,2.618]
[1735732698352,11.34027011,191.4,191.34,8.38027011]
[1735732699452,2.96,191.4,191.37,2.6177]
[1735732700045,5.5773,191.41,191.37,2.6177]
[1735732700253,11.34027011,191.41,191.39,2.6175]
[1735732700451,2.96,191.41,191.39,2.6175]
[1735732700654,11.34027011,191.41,191.39,2.6175]
[1735732701150,2.96,191.41,191.39,2.6175]
[1735732701350,11.34027011,191.41,191.39,2.6175]
[1735732707054,2.96,191.41,191.39,2.6175]
[1735732707253,11.34027011,191.41,191.39,2.6175]
[1735732708755,11.34027011,191.41,191.34,8.38027011]
[1735732709058,2.96,191.42,191.38,8.38027011]
[1735732710552,2.96,191.42,191.41,2.6171]
[1735732713154,10.99687011,191.46,191.38,8.38027011]
[1735732713355,2.96,191.45,191.42,2.617]
[1735732714459,2.96,191.45,191.38,8.38027011]
[1735732714657,8.38027011,191.46,191.4,8.38027011]
[1735732714856,11.34027011,191.46,191.4,8.38027011]
[1735732715160,11.34027011,191.46,191.44,2.6168]
[1735732717952,2.96,191.46,191.4,8.38027011]
[1735732718153,3.92854924,191.5,191.42,8.38027011]
[1735732718154,15.26881935,191.5,191.42,8.38027011]
[1735732718463,8.38027011,191.5,191.44,8.38027011]
[1735732719260,4.575,191.51,191.47,2.6163]
[1735732719459,8.38027011,191.51,191.44,8.38027011]
[1735732720557,8.38027011,191.51,191.49,2.6161]
[1735732722258,4.6003,191.56,191.46,8.38027011]
[1735732722461,8.38027011,191.54,191.46,8.38027011]
[1735732723159,11.34027011,191.54,191.5,2.6159]
[1735732723565,13.95577011,191.54,191.5,2.6159]
[1735732724068,8.38027011,191.52,191.46,8.38027011]
[1735732724265,8.38027011,191.52,191.49,2.6161]
[1735732725362,8.38027011,191.52,191.46,8.38027011]
[1735732725569,8.38027011,191.52,191.5,2.616]
[1735732728465,8.38027011,191.52,191.48,2.6162]
[1735732728670,8.38027011,191.52,191.46,8.38027011]
[1735732729171,8.38027011,191.52,191.47,2.6163]
[1735732729469,8.38027011,191.52,191.46,8.38027011]
[1735732729871,8.38027011,191.52,191.48,2.6162]
[1735732731073,8.38027011,191.5,191.42,10.13074891]
[1735732731372,8.38027011,191.48,191.42,10.13074891]
[1735732731573,11.34027011,191.48,191.44,2.6167]
[1735732731774,11.34027011,191.48,191.42,8.38027011]
[1735732731975,11.34027011,191.48,191.46,2.6165]
[1735732734664,11.34027011,191.48,191.47,2.6164]
[1735732737275,2.96,191.48,191.47,2.6164]
[1735732737779,11.34027011,191.51,191.5,2.616]
[1735732742883,11.34027011,191.51,191.45,8.38027011]
[1735732743083,8.38027011,191.53,191.49,2.6161]
[1735732743277,11.34027011,191.53,191.47,8.38027011]
[1735732743479,8.38027011,191.53,191.47,8.38027011]
[1735732744285,8.38027011,191.53,191.51,2.6157]
[1735732745278,4.6003,191.56,191.49,8.38027011]
[1735732745481,2.96,191.55,191.53,2.6156]
[1735732745883,2.96,191.55,191.49,8.38027011]
[1735732745884,2.96,191.58,191.51,8.38027011]
[1735732746084,11.34027011,191.58,191.51,8.38027011]
[1735732748679,11.34027011,191.58,191.54,2.6154]
[1735732749484,2.96,191.58,191.54,2.6154]
[1735732749684,11.34027011,191.58,191.54,2.6154]
[1735732750889,11.34027011,191.58,191.51,8.38027011]
[1735732751190,11.34027011,191.58,191.55,2.6153]
[1735732756492,13.95527011,191.58,191.53,2.6156]
[1735732756690,8.38027011,191.56,191.53,2.6156]
[1735732757592,8.38027011,191.56,191.54,2.6153]
[1735732761187,8.38027011,191.56,191.55,2.6153]
[1735732761388,11.34027011,191.58,191.51,8.38027011]
[1735732761988,11.34027011,191.58,191.53,8.38027011]
[1735732762492,8.38027011,191.58,191.56,2.6151]
[1735732765390,2.96,191.59,191.56,2.6151]
[1735732765590,11.34027011,191.59,191.56,2.6151]
[1735732767392,8.38027011,191.59,191.56,2.6151]
[1735732767596,2.96,191.59,191.56,2.6151]
[1735732767797,11.34027011,191.59,191.56,2.6151]
[1735732771293,13.95507011,191.59,191.55,2.6153]
[1735732771694,8.38027011,191.57,191.55,2.6153]
[1735732776902,10.99537011,191.57,191.52,2.6156]
[1735732777103,8.38027011,191.55,191.49,8.38027011]
[1735732777303,2.96,191.54,191.47,8.38027011]
[1735732777704,2.6157,191.52,191.48,2.6163]
[1735732778104,8.38027011,191.53,191.46,8.38027011]
[1735732778304,10.99597011,191.53,191.48,2.6162]
[1735732780009,8.38027011,191.51,191.48,2.6162]
[1735732780413,8.38027011,191.51,191.41,1.5218]
[1735732780414,8.38027011,191.51,191.46,2.6165]
[1735732780601,10.99617011,191.51,191.46,2.6165]
[1735732780807,8.38027011,191.51,191.46,2.6165]
[1735732782412,2.616,191.5,191.45,2.6167]
[1735732782612,2.96,191.49,191.45,2.6167]
[1735732783410,5.5762,191.49,191.44,10.99707011]
[1735732783616,13.95647011,191.49,191.44,2.6168]
[1735732784012,2.6163,191.48,191.43,2.617]
[1735732787721,13.95647011,191.49,191.43,2.617]
[1735732793219,13.95647011,191.49,191.42,8.38027011]
[1735732793430,13.95647011,191.49,191.44,2.6168]
[1735732797735,2.6163,191.48,191.44,2.6168]
[1735732802535,2.6166,191.46,191.42,8.38027011]
[1735732802733,2.6166,191.46,191.4,8.38027011]
[1735732803034,2.6166,191.46,191.41,2.6171]
[1735732803235,2.6169,191.44,191.36,1.6029]
[1735732803433,2.96,191.43,191.37,8.38027011]
[1735732803736,11.34027011,191.43,191.37,8.38027011]
[1735732803936,1.5304,191.46,191.39,8.38027011]
[1735732803937,2.96,191.44,191.39,8.38027011]
[1735732804135,2.96,191.44,191.41,8.38027011]
[1735732804336,2.616,191.5,191.45,2.6166]
[1735732804531,2.96,191.49,191.45,2.6166]
[1735732804932,2.96,191.49,191.46,2.6165]
[1735732805134,2.96,191.49,191.45,8.38027011]
[1735732805932,2.96,191.49,191.45,2.6167]
[1735732806436,2.6163,191.48,191.44,2.6168]
[1735732806636,2.96,191.49,191.43,8.38027011]
[1735732807138,2.96,191.49,191.46,2.6164]
[1735732808934,5.7805,191.52,191.47,2.6163]
[1735732809136,1.6091,191.53,191.47,8.38027011]
[1735732809437,2.96,191.53,191.49,8.38027011]
[1735732810035,2.96,191.53,191.5,2.6159]
[1735732810837,2.96,191.53,191.48,2.6162]
[1735732811038,11.34027011,191.53,191.47,8.38027011]
[1735732811239,8.38027011,191.51,191.46,2.6165]
[1735732811440,8.38027011,191.51,191.45,8.38027011]
[1735732811837,2.6161,191.5,191.45,10.99697011]
[1735732812333,8.38027011,191.51,191.45,10.99697011]
[1735732812542,2.6162,191.49,191.45,2.6167]
[1735732812838,2.6162,191.49,191.44,2.6168]
[1735732816550,2.6164,191.47,191.43,10.99727011]
[1735732816947,2.96,191.48,191.43,10.99727011]
[1735732817147,2.96,191.48,191.45,2.6167]
[1735732817342,2.96,191.48,191.43,8.38027011]
[1735732817553,2.96,191.48,191.45,8.38027011]
[1735732817855,8.38027011,191.51,191.45,8.38027011]
[1735732818045,2.96,191.5,191.45,8.38027011]
[1735732818749,5.6666,191.52,191.47,10.99657011]
[1735732818950,2.96,191.51,191.47,8.38027011]
[1735732819548,2.96,191.51,191.48,2.6162]
[1735732819849,2.96,191.51,191.47,8.38027011]
[1735732820654,2.96,191.54,191.49,8.38027011]
[1735732822846,2.96,191.54,191.52,2.6157]
[1735732823047,2.96,191.54,191.49,8.38027011]
[1735732824457,2.96,191.54,191.51,2.6159]
[1735732825358,2.96,191.54,191.52,2.6157]
[1735732825554,8.38027011,191.56,191.49,8.38027011]
[1735732825760,2.96,191.57,191.51,8.38027011]
[1735732826061,11.34027011,191.59,191.53,8.38027011]
[1735732826659,13.95517011,191.59,191.54,2.6154]
[1735732827356,13.95517011,191.59,191.53,8.38027011]
[1735732827550,11.34027011,191.59,191.55,2.6153]
[1735732828057,2.96,191.59,191.57,2.615]
[1735732829657,8.38027011,191.6,191.57,2.615]
[1735732829962,11.34027011,191.6,191.57,2.615]
[1735732830561,0.97223261,191.6,191.58,2.6149]
[1735732831259,10.99447011,191.63,191.59,2.6148]
[1735732831460,2.96,191.62,191.59,2.6148]
[1735732833060,2.96,191.62,191.57,8.38027011]
[1735732834066,5.5742,191.63,191.58,2.6149]
[1735732834866,10.99497011,191.6,191.56,2.6152]
[1735732835060,8.38027011,191.58,191.52,8.38027011]
[1735732835260,11.34027011,191.58,191.52,8.38027011]
[1735732835960,2.6151,191.57,191.45,3.39514841]
[1735732836165,2.6151,191.57,191.5,8.38027011]
[1735732836166,8.38027011,191.56,191.5,8.38027011]
[1735732836668,8.38027011,191.56,191.53,2.6156]
[1735732837465,2.6154,191.55,191.51,2.6158]
[1735732837662,8.38027011,191.54,191.48,8.38027011]
[1735732837863,1.5599,191.57,191.48,8.38027011]
[1735732838063,8.38027011,191.53,191.48,8.38027011]
[1735732838262,11.34027011,191.53,191.48,8.38027011]
[1735732838563,11.34027011,191.53,191.49,2.6161]
[1735732840363,2.96,191.53,191.49,2.6161]
[1735732840666,2.96,191.53,191.5,2.616]
[1735732842864,5.5756,191.53,191.49,2.6161]
[1735732843366,2.6157,191.52,191.47,10.99657011]
[1735732843761,2.6157,191.52,191.47,8.38027011]
[1735732844465,2.6157,191.52,191.48,2.6163]
[1735732845169,13.95597011,191.53,191.48,2.6163]
[1735732848271,2.6158,191.52,191.47,10.99667011]
[1735732848570,2.6158,191.52,191.45,1.78734841]
[1735732848571,8.38027011,191.51,191.45,10.16761852]
[1735732849469,10.99617011,191.51,191.46,2.6165]
[1735732849971,11.34027011,191.53,191.47,8.38027011]
[1735732850571,13.95597011,191.53,191.47,10.99657011]
[1735732852672,11.34027011,191.53,191.49,2.6161]
[1735732853676,13.95587011,191.53,191.49,2.6161]
[1735732854572,5.5756,191.53,191.49,2.6161]
[1735732855474,1.5342,191.56,191.52,2.6157]
[1735732855774,2.96,191.53,191.52,2.6157]
[1735732856867,2.96,191.53,191.51,8.38027011]
[1735732857173,2.96,191.53,191.51,10.99617011]
[1735732858277,2.96,191.55,191.52,2.6157]
[1735732858777,2.96,191.55,191.51,8.38027011]
[1735732859576,3.0827,191.57,191.51,8.38027011]
[1735732859771,2.96,191.56,191.51,8.38027011]
[1735732860375,2.96,191.56,191.54,2.6153]
[1735732860570,2.6149,191.59,191.53,8.38027011]
[1735732860881,3.1933,191.62,191.55,8.38027011]
[1735732861178,2.96,191.61,191.55,8.38027011]
[1735732861869,2.96,191.61,191.57,2.615]
[1735732863582,2.6145,191.61,191.57,2.615]
[1735732863782,2.96,191.6,191.56,2.6152]
[1735732864580,2.96,191.6,191.58,2.6149]
[1735732865579,2.96,191.63,191.6,2.6146]
[1735732866486,2.96,191.63,191.57,8.38027011]
[1735732866679,2.96,191.63,191.59,2.6148]
[1735732867380,10.99437011,191.64,191.59,2.6148]
[1735732867580,2.96,191.63,191.59,2.6148]
[1735732871083,5.5742,191.63,191.59,2.6148]
[1735732872180,2.96,191.63,191.59,2.6148]
[1735732874980,13.95437011,191.64,191.59,2.6148]
[1735732875787,2.6142,191.63,191.59,2.6148]
[1735732876688,2.6142,191.63,191.59,10.99507011]
[1735732880188,2.6142,191.63,191.59,8.38027011]
[1735732880795,8.38027011,191.62,191.57,2.615]
[1735732881696,2.6146,191.6,191.56,10.99547011]
[1735732882097,8.38027011,191.62,191.56,8.38027011]
[1735732883000,2.6147,191.6,191.56,8.38027011]
[1735732885802,2.6147,191.6,191.56,10.99537011]
[1735732887003,2.6147,191.6,191.57,2.615]
[1735732888598,5.5745,191.61,191.58,8.38027011]
[1735732888802,2.6145,191.61,191.58,8.38027011]
[1735732891602,5.5745,191.61,191.58,8.38027011]
[1735732891806,5.5745,191.61,191.57,2.615]
[1735732892200,5.5745,191.61,191.57,10.99527011]
[1735732897310,2.96,191.61,191.57,8.38027011]
[1735732898508,2.96,191.61,191.59,2.6148]
[1735732899802,2.96,191.61,191.59,10.99507011]
[1735732900209,2.96,191.61,191.6,2.6146]
[1735732901813,2.96,191.61,191.59,10.99507011]
[1735732902015,2.96,191.61,191.57,8.38027011]
[1735732902214,2.96,191.61,191.59,8.38027011]
[1735732903413,2.96,191.61,191.59,10.99507011]
[1735732908514,2.96,191.61,191.59,2.6148]
[1735732908710,2.96,191.61,191.59,10.99507011]
[1735732909215,2.96,191.61,191.59,2.6148]
[1735732909415,2.96,191.61,191.51,1.5194]
[1735732909716,2.96,191.61,191.54,8.38027011]
[1735732910116,2.6149,191.59,191.55,2.6153]
[1735732911013,2.6149,191.59,191.56,10.99547011]
[1735732911421,2.6147,191.6,191.56,10.99547011]
[1735732913115,2.96,191.61,191.56,8.38027011]
[1735732913417,5.5745,191.61,191.57,2.6151]
[1735732920823,2.96,191.61,191.54,8.38027011]
[1735732921723,2.96,191.61,191.51,1.5194]
[1735732921724,8.38027011,191.58,191.51,1.5194]
[1735732921921,8.38027011,191.56,191.46,1.5196]
[1735732922114,2.96,191.55,191.49,8.38027011]
[1735732923017,5.5754,191.55,191.5,2.616]
[1735732924320,2.6156,191.54,191.49,10.99637011]
[1735732924525,8.38027011,191.54,191.45,1.78734841]
[1735732924721,8.38027011,191.54,191.47,8.38027011]
[1735732924926,2.6158,191.52,191.47,10.99657011]
[1735732925626,10.99587011,191.54,191.48,2.6162]
[1735732925928,8.38027011,191.54,191.49,8.38027011]
[1735732926121,2.96,191.55,191.49,8.38027011]
[1735732927424,2.96,191.55,191.51,2.6159]
[1735732928228,2.96,191.55,191.49,8.38027011]
[1735732928424,5.5754,191.55,191.5,2.616]
[1735732929121,5.5754,191.55,191.5,10.99627011]
[1735732930520,8.38027011,191.56,191.5,8.38027011]
[1735732930728,2.96,191.55,191.52,10.99597011]
[1735732931134,2.96,191.55,191.52,8.38027011]
[1735732933925,2.6155,191.54,191.5,8.38027011]
[1735732934131,8.38027011,191.54,191.48,8.38027011]
[1735732935036,2.6157,191.53,191.48,10.99647011]
[1735732938034,2.6159,191.52,191.47,2.6164]
[1735732938327,8.38027011,191.54,191.48,8.38027011]
[1735732939236,2.616,191.51,191.48,8.38027011]
[1735732939433,8.38027011,191.54,191.48,8.38027011]
[1735732940331,8.38027011,191.54,191.46,2.6166]
[1735732940728,10.99577011,191.54,191.49,2.616]
[1735732940934,2.94,191.55,191.52,8.38027011]
[1735732941738,2.94,191.55,191.54,8.38027011]
[1735732942734,2.94,191.55,191.52,8.38027011]
[1735732943437,2.94,191.55,191.52,10.99597011]
[1735732944133,2.94,191.56,191.52,10.99597011]
[1735732944631,3.0837,191.6,191.54,8.38027011]
[1735732944938,2.6145,191.61,191.56,8.38027011]
[1735732945643,2.6145,191.61,191.58,8.38027011]
[1735732948639,2.6147,191.6,191.56,8.38027011]
[1735732949339,8.38027011,191.61,191.56,8.38027011]
[1735732949540,10.99477011,191.61,191.56,10.99547011]
[1735732950639,2.6147,191.6,191.56,2.6152]
[1735732950839,8.38027011,191.61,191.54,10.99567011]
[1735732951046,8.38027011,191.59,191.54,8.38027011]
[1735732951241,8.38027011,191.59,191.52,8.38027011]
[1735732951440,8.38027011,191.57,191.52,8.38027011]
[1735732951644,2.94,191.56,191.52,8.38027011]
[1735732952140,2.94,191.56,191.5,10.99627011]
[1735732952645,8.38027011,191.55,191.5,2.616]
[1735732952845,8.38027011,191.55,191.49,4.34070921]
[1735732953345,2.6156,191.53,191.49,4.34070921]
[1735732953539,8.38027011,191.53,191.49,1.72460921]
[1735732954142,2.6159,191.51,191.46,10.99677011]
[1735732954338,2.94,191.5,191.46,2.6165]
[1735732956947,2.94,191.5,191.47,8.38027011]
[1735732957147,2.94,191.5,191.47,10.99667011]
[1735732957447,2.94,191.5,191.49,8.38027011]
[1735732957649,2.94,191.53,191.49,8.38027011]
[1735732958148,2.94,191.53,191.5,2.6159]
[1735732959543,2.94,191.53,191.51,2.6159]
[1735732962551,2.94,191.53,191.41,1.4843]
[1735732962749,2.94,191.53,191.47,8.38027011]
[1735732963050,8.38027011,191.52,191.47,8.38027011]
[1735732964550,2.6159,191.51,191.47,8.38027011]
[1735732965143,8.38027011,191.5,191.45,2.6167]
[1735732965347,8.38027011,191.48,191.43,8.38027011]
[1735732965548,2.94,191.47,191.43,8.38027011]
[1735732965852,2.94,191.47,191.43,10.99707011]
[1735732966454,5.5565,191.47,191.42,2.6171]
[1735732967153,2.6166,191.46,191.41,8.38027011]
[1735732967344,10.99687011,191.46,191.41,8.38027011]
[1735732967853,10.99687011,191.46,191.41,10.99747011]
[1735732969553,2.6167,191.45,191.4,2.6173]
[1735732969755,2.6167,191.45,191.4,8.38027011]
[1735732970055,8.38027011,191.46,191.4,8.38027011]
[1735732970245,8.38027011,191.46,191.41,2.6171]
[1735732970449,2.94,191.47,191.42,8.38027011]
[1735732971552,2.94,191.47,191.43,2.6169]
[1735732972052,5.5564,191.47,191.43,2.6169]
[1735732972246,5.5564,191.47,191.42,8.38027011]
[1735732972453,5.5564,191.47,191.42,10.99737011]
[1735732972653,2.6166,191.46,191.42,10.99737011]
[1735732973455,2.6169,191.44,191.4,8.38027011]
[1735732974655,2.6167,191.45,191.4,8.38027011]
[1735732975159,11.32027011,191.47,191.42,2.6171]
[1735732975761,13.93677011,191.47,191.42,2.6171]
[1735732976458,2.6166,191.46,191.42,2.6171]
[1735732978562,2.6167,191.45,191.4,10.99767011]
[1735732978861,10.99697011,191.45,191.4,10.99767011]
[1735732979363,11.32027011,191.47,191.4,8.38027011]
[1735732979661,2.6166,191.46,191.42,2.6171]
[1735732980461,13.93677011,191.47,191.42,2.6171]
[1735732982865,11.32027011,191.47,191.42,2.6171]
[1735732983064,2.6166,191.46,191.42,2.6171]
[1735732983263,2.6166,191.46,191.41,2.6172]
[1735732984063,8.38027011,191.45,191.4,8.38027011]
[1735732984266,8.38027011,191.45,191.39,51.74300012]
[1735732984466,8.38027011,191.43,191.39,49.12550012]
[1735732984766,5.5772,191.42,191.39,49.12550012]
[1735732985065,8.38027011,191.46,191.4,8.38027011]
[1735732985265,2.96,191.46,191.4,8.38027011]
[1735732985870,5.5766,191.46,191.42,2.6171]
[1735732986163,5.5766,191.46,191.4,8.38027011]
[1735732986370,5.5766,191.46,191.41,2.6172]
[1735732987973,2.96,191.46,191.41,2.6172]
[1735732988167,2.6167,191.45,191.41,2.6172]
[1735732989869,8.38027011,191.45,191.39,49.12550012]
[1735732990070,8.38027011,191.43,191.39,49.12550012]
[1735732990272,8.38027011,191.41,191.36,8.38027011]
[1735732990475,2.6175,191.39,191.35,2.618]
[1735732990679,2.96,191.4,191.35,2.618]
[1735732990865,8.38027011,191.39,191.33,4.209]
[1735732991172,8.38027011,191.37,191.32,8.38027011]
[1735732991673,10.99817011,191.37,191.31,2.6186]
[1735732991874,8.38027011,191.39,191.32,8.38027011]
[1735732992176,8.38027011,191.39,191.33,8.38027011]
[1735732994169,2.96,191.4,191.33,8.38027011]
[1735732994571,5.5774,191.4,191.35,2.6179]
[1735732995575,8.38027011,191.39,191.35,2.6179]
[1735732995778,10.99777011,191.39,191.35,2.6179]
[1735732995969,10.99777011,191.39,191.34,2.6182]
[1735732998085,8.38027011,191.39,191.35,2.618]
[1735732999684,10.99787011,191.39,191.32,10.99877011]
[1735732999875,8.38027011,191.39,191.32,8.38027011]
[1735733000282,2.6179,191.37,191.33,2.6182]
[1735733000481,8.38027011,191.39,191.32,8.38027011]
[1735733000788,8.38027011,191.37,191.32,8.38027011]
[1735733000982,8.38027011,191.35,191.13,215.19776371]
[1735733001186,2.94,191.34,191.3,8.38027011]
[1735733001583,2.94,191.34,191.32,2.6185]
[1735733001784,2.94,191.34,191.3,8.38027011]
[1735733002483,2.94,191.34,191.31,2.6186]
[1735733005080,1.4793,191.44,191.3,8.38027011]
[1735733005285,2.96,191.43,191.34,8.38027011]
[1735733005486,8.38027011,191.4,191.34,8.38027011]
[1735733005687,2.96,191.39,191.34,8.38027011]
[1735733005887,2.96,191.39,191.35,2.618]
[1735733007684,2.6178,191.37,191.33,2.6183]
[1735733008080,8.38027011,191.38,191.31,8.38027011]
[1735733008285,2.618,191.36,191.31,10.99877011]
[1735733008487,10.99827011,191.36,191.31,10.99877011]
[1735733008681,10.99827011,191.36,191.31,8.38027011]
[1735733009384,5.578,191.36,191.31,8.38027011]
[1735733009590,5.578,191.36,191.32,2.6184]
[1735733009789,10.99807011,191.38,191.31,8.38027011]
[1735733009990,2.96,191.36,191.35,2.6181]
[1735733010589,2.96,191.36,191.31,8.38027011]
[1735733011486,5.5779,191.36,191.32,2.6184]
[1735733014595,2.6182,191.35,191.3,2.6187]
[1735733014792,2.6182,191.35,191.29,8.38027011]
[1735733015096,11.34027011,191.36,191.29,8.38027011]
[1735733015294,13.95827011,191.36,191.32,2.6185]
[1735733015596,13.95827011,191.36,191.31,8.38027011]
[1735733016093,2.96,191.36,191.31,8.38027011]
[1735733017597,2.96,191.36,191.34,2.6181]
[1735733018692,13.95817011,191.36,191.32,2.6184]
[1735733019092,11.34027011,191.36,191.29,8.38027011]
[1735733019797,2.96,191.36,191.31,8.38027011]
[1735733020298,2.96,191.36,191.33,8.38027011]
[1735733020499,4.4393,191.44,191.35,8.38027011]
[1735733020698,9.85957011,191.44,191.37,8.38027011]
[1735733020895,8.38027011,191.44,191.37,8.38027011]
[1735733021296,8.38027011,191.44,191.39,2.6175]
[1735733021900,2.6171,191.42,191.38,2.6176]
[1735733022299,10.99737011,191.42,191.37,8.38027011]
[1735733022495,8.38027011,191.42,191.37,8.38027011]
[1735733022799,10.99717011,191.44,191.37,8.38027011]
[1735733023501,10.99717011,191.44,191.39,2.6175]
[1735733023704,2.6173,191.41,191.37,8.38027011]
[1735733024399,2.6173,191.41,191.37,10.99807011]
[1735733026205,2.6173,191.41,191.37,2.6178]
[1735733029607,11.32027011,191.44,191.37,8.38027011]
[1735733029799,11.32027011,191.44,191.34,1.596]
[1735733030005,8.38027011,191.42,191.34,1.596]
[1735733030205,8.38027011,191.42,191.35,8.38027011]
[1735733031106,2.6173,191.41,191.37,2.6177]
[1735733032903,2.6173,191.41,191.35,8.38027011]
[1735733033098,2.6173,191.41,191.38,2.6176]
[1735733034712,2.6172,191.42,191.38,2.6176]
[1735733035007,10.99747011,191.42,191.38,2.6176]
[1735733035206,10.99747011,191.42,191.35,8.38027011]
[1735733035599,2.94,191.44,191.35,8.38027011]
[1735733035801,11.32027011,191.44,191.41,2.6171]
[1735733036001,3.1443,191.45,191.37,8.38027011]
[1735733036199,11.32027011,191.46,191.34,1.596]
[1735733036200,8.38027011,191.46,191.39,8.38027011]
[1735733036407,8.38027011,191.46,191.42,2.617]
[1735733036796,8.38027011,191.46,191.39,8.38027011]
[1735733039411,10.99687011,191.46,191.42,2.617]
[1735733039708,8.38027011,191.48,191.45,2.6167]
[1735733040112,8.38027011,191.5,191.43,8.38027011]
[1735733042014,8.38027011,191.5,191.46,2.6164]
[1735733042211,3.0962,191.52,191.45,8.38027011]
[1735733042417,8.38027011,191.53,191.47,8.38027011]
[1735733042717,8.38027011,191.53,191.51,2.6158]
[1735733042911,11.32027011,191.55,191.51,2.6158]
[1735733043114,8.38027011,191.55,191.47,8.38027011]
[1735733043709,8.38027011,191.55,191.52,2.6156]
[1735733044315,8.38027011,191.57,191.49,8.38027011]
[1735733044618,8.38027011,191.57,191.54,2.6153]
[1735733045613,12.83697011,191.59,191.51,8.38027011]
[1735733045815,8.38027011,191.59,191.55,2.6153]
[1735733046215,8.38027011,191.59,191.53,8.38027011]